bitfinex-derivatives/quotes_SOLF0:USTF0_20250425
["timestamp","ask_amount","ask_price","bid_price","bid_amount"]
[1745584928266,6.4591,154.76,154.73,6.4599]
[1745584929660,6.4593,154.75,154.73,6.4599]
[1745584930463,6.459,154.76,154.73,6.4599]
[1745584930669,35.92077393,154.77,154.73,6.4599]
[1745584930867,10.86077393,154.75,154.68,0.33697]
[1745584931067,17.32107393,154.73,154.68,0.33697]
[1745584931369,17.32107393,154.73,154.7,6.461]
[1745584931764,17.32107393,154.73,154.68,0.33697]
[1745584931968,17.32107393,154.73,154.7,6.4611]
[1745584932570,17.32107393,154.73,154.68,0.33697]
[1745584933672,6.4606,154.72,154.69,6.4616]
[1745584933874,35.92077393,154.73,154.69,6.4616]
[1745584934070,35.92077393,154.73,154.68,0.33697]
[1745584934271,25.06,154.76,154.68,0.33697]
[1745584934574,6.4593,154.75,154.68,0.33697]
[1745584934776,6.4593,154.75,154.72,6.4604]
[1745584935274,6.4593,154.75,154.68,0.33697]
[1745584935575,6.4598,154.74,154.71,6.4608]
[1745584935874,25.06,154.76,154.71,6.4608]
[1745584936274,6.4596,154.75,154.71,6.4608]
[1745584936875,25.06,154.76,154.7,6.4612]
[1745584937076,10.86077393,154.75,154.7,6.4612]
[1745584937277,6.9490596,154.72,154.7,6.4612]
[1745584937880,13.4096596,154.72,154.69,6.4618]
[1745584938073,6.9490596,154.71,154.68,0.33697]
[1745584938876,6.9490596,154.71,154.69,6.4616]
[1745584940481,6.9490596,154.71,154.7,6.4614]
[1745584940679,6.9490596,154.72,154.68,7.2860296]
[1745584941080,6.9490596,154.72,154.7,6.461]
[1745584941879,6.9490596,154.72,154.71,6.4609]
[1745584942379,32.0090596,154.76,154.74,6.4594]
[1745584946179,25.06,154.76,154.75,6.4593]
[1745584946385,25.06,154.76,154.72,6.9490596]
[1745584946576,25.06,154.76,154.74,6.4595]
[1745584947184,25.06,154.76,154.72,6.9490596]
[1745584947384,32.0090596,154.76,154.72,6.9490596]
[1745584948186,32.0090596,154.76,154.74,6.4595]
[1745584948383,32.0090596,154.76,154.72,6.9490596]
[1745584948786,32.0090596,154.76,154.73,6.46]
[1745584948988,32.0090596,154.76,154.72,6.9490596]
[1745584949684,32.0090596,154.76,154.74,6.4594]
[1745584950588,32.0090596,154.76,154.75,6.4593]
[1745584950887,31.9690596,154.79,154.75,6.9490596]
[1745584951086,6.9490596,154.79,154.75,6.9490596]
[1745584951788,13.4067596,154.79,154.76,6.4586]
[1745584952084,31.9690596,154.8,154.75,6.9490596]
[1745584952290,25.02,154.8,154.77,6.9490596]
[1745584952585,13.4055596,154.82,154.78,13.4067596]
[1745584952781,13.4055596,154.82,154.78,6.4577]
[1745584952981,6.9490596,154.82,154.78,6.4577]
[1745584953287,6.4568,154.81,154.78,6.4577]
[1745584954096,13.4055596,154.82,154.79,6.4576]
[1745584954294,6.9490596,154.81,154.77,6.9490596]
[1745584954491,497.4690596,154.83,154.81,6.4566]
[1745584954793,6.9490596,154.82,154.77,6.9490596]
[1745584954994,6.9490596,154.82,154.79,6.4574]
[1745584955292,6.4568,154.81,154.79,6.4574]
[1745584955593,13.4056596,154.82,154.79,6.4574]
[1745584955785,6.9490596,154.81,154.79,6.4574]
[1745584955990,6.9490596,154.81,154.77,6.9490596]
[1745584956593,6.9490596,154.81,154.78,6.4578]
[1745584957197,13.4059596,154.81,154.78,6.4578]
[1745584958899,13.4063596,154.8,154.77,6.4582]
[1745584959299,6.9490596,154.8,154.77,6.4582]
[1745584959500,6.9490596,154.8,154.78,6.4579]
[1745584960302,6.9490596,154.82,154.78,6.9490596]
[1745584960600,25.02,154.83,154.79,6.9490596]
[1745584961901,25.02,154.83,154.75,7.6959]
[1745584961902,25.02,154.83,154.8,6.9490596]
[1745584962400,6.9490596,154.82,154.79,6.9490596]
[1745584962601,6.9490596,154.82,154.78,6.9490596]
[1745584963004,13.4054596,154.82,154.79,6.4574]
[1745584963602,6.9490596,154.81,154.79,6.4574]
[1745584964207,6.9490596,154.81,154.78,6.4578]
[1745584964401,6.9490596,154.81,154.77,6.9490596]
[1745584964604,6.9490596,154.81,154.75,7.6959]
[1745584964605,6.9490596,154.81,154.78,6.9490596]
[1745584965007,6.9490596,154.8,154.76,6.9490596]
[1745584965209,6.9490596,154.8,154.75,14.6449596]
[1745584965398,6.9490596,154.8,154.78,6.4577]
[1745584969712,6.9490596,154.8,154.77,6.4582]
[1745584970012,6.9490596,154.8,154.76,6.9490596]
[1745584970313,6.9490596,154.8,154.78,6.4578]
[1745584970514,6.9490596,154.81,154.77,6.9490596]
[1745584971117,6.9490596,154.81,154.78,6.4578]
[1745584971418,13.4058596,154.81,154.78,6.4578]
[1745584974223,6.9490596,154.81,154.79,6.4576]
[1745584976021,13.4058596,154.81,154.78,6.4576]
[1745584976224,6.9490596,154.82,154.78,6.9490596]
[1745584976419,6.9490596,154.85,154.8,6.9490596]
[1745584976721,6.9490596,154.85,154.83,6.4559]
[1745584976922,31.9290596,154.86,154.82,6.9490596]
[1745584978525,31.9290596,154.86,154.83,6.4559]
[1745584978720,24.98,154.86,154.82,6.9490596]
[1745584978918,6.9490596,154.87,154.82,6.9490596]
[1745584979222,6.9490596,154.87,154.84,6.4553]
[1745584979521,6.9490596,154.87,154.82,6.9490596]
[1745584979723,6.9490596,154.87,154.85,6.4549]
[1745584980020,6.9490596,154.87,154.83,7.6385]
[1745584983221,13.4010596,154.93,154.89,6.9490596]
[1745584983424,31.9290596,154.94,154.9,6.9490596]
[1745584983825,13.4010596,154.93,154.89,6.453]
[1745584984023,13.4010596,154.93,154.89,6.9490596]
[1745584984224,6.9490596,154.92,154.88,6.4537]
[1745584984621,13.4016596,154.91,154.87,10.284]
[1745584984826,6.9490596,154.91,154.87,3.8299]
[1745584985124,6.4531,154.9,154.87,3.8299]
[1745584986226,6.4539,154.88,154.86,24.98]
[1745584986426,6.9490596,154.89,154.85,6.9490596]
[1745584986726,6.4518,154.93,154.88,6.9490596]
[1745584987025,6.9490596,154.92,154.88,6.9490596]
[1745584987226,13.4014596,154.92,154.88,6.9490596]
[1745584987525,6.9490596,154.92,154.88,6.9490596]
[1745584987823,13.4010596,154.93,154.88,13.4025596]
[1745584988126,13.4010596,154.93,154.88,6.9490596]
[1745584988422,13.4010596,154.93,154.89,6.4534]
[1745584990623,6.9490596,154.95,154.9,6.9490596]
[1745584990920,6.9490596,154.95,154.91,6.9490596]
[1745584991228,24.98,154.97,154.93,6.9490596]
[1745584991429,6.9490596,154.98,154.94,6.9490596]
[1745584991927,6.9490596,154.99,154.95,6.9490596]
[1745584992124,38.3781596,155.0,154.95,6.9490596]
[1745584992328,24.98,155.0,154.97,6.9490596]
[1745584992629,13.3977596,155.01,154.97,13.3988596]
[1745584992827,6.9490596,155.01,154.97,6.9490596]
[1745584993331,6.9490596,155.01,154.98,6.4497]
[1745584993725,6.9490596,155.01,154.97,6.9490596]
[1745584993930,24.98,155.03,154.97,6.9490596]
[1745584994122,6.9490596,155.02,154.97,6.9490596]
[1745584994526,6.4485,155.01,154.97,6.9490596]
[1745584994831,6.9490596,155.02,154.97,6.9490596]
[1745584995531,6.9490596,155.01,154.97,6.9490596]
[1745584995735,6.4495,154.99,154.95,13.3997596]
[1745584996434,6.4498,154.98,154.95,6.9490596]
[1745584997033,6.4491,155.0,154.97,6.9490596]
[1745584997635,13.3976596,155.01,154.97,6.9490596]
[1745584997830,31.9290596,155.03,154.99,6.9490596]
[1745584998034,6.9490596,155.02,154.97,6.9490596]
[1745584998333,6.9490596,155.02,154.98,6.9490596]
[1745584998639,24.98,155.03,154.96,7.7744]
[1745584998640,31.9290596,155.03,154.99,6.9490596]
[1745584999336,38.3769596,155.03,154.99,6.9490596]
[1745584999635,6.9490596,155.0,154.95,3.8574]
[1745584999827,6.9490596,155.01,154.97,6.9490596]
[1745585000034,6.9490596,155.03,154.98,6.9490596]
[1745585000535,6.4477,155.03,154.99,6.9490596]
[1745585000936,6.4477,155.03,154.99,13.3980596]
[1745585001136,6.448,155.02,154.99,6.9490596]
[1745585002329,6.4485,155.01,154.98,6.9490596]
[1745585002534,6.9490596,155.01,154.96,10.8949596]
[1745585002736,6.9490596,155.02,154.98,6.9490596]
[1745585002933,6.9490596,155.02,154.97,6.9490596]
[1745585003130,6.9490596,155.01,154.96,10.8949596]
[1745585003331,6.9490596,154.99,154.95,10.8064596]
[1745585003535,6.9490596,154.99,154.95,3.8574]
[1745585003733,6.9490596,154.98,154.94,28.7029]
[1745585003931,6.9490596,154.97,154.94,3.7429]
[1745585004538,6.9490596,154.96,154.92,13.4010596]
[1745585004937,13.3997596,154.96,154.92,13.4010596]
[1745585006138,13.3997596,154.96,154.93,6.4517]
[1745585006536,6.451,154.95,154.92,6.9490596]
[1745585006841,24.96,155.02,154.92,6.452]
[1745585007034,6.9490596,154.96,154.92,6.452]
[1745585007233,13.3998596,154.96,154.92,6.452]
[1745585007842,6.9490596,154.94,154.91,35.4776]
[1745585008241,6.9490596,154.93,154.91,4.0651]
[1745585008446,6.9490596,154.93,154.9,10.1964]
[1745585008940,6.9490596,154.92,154.9,10.1965]
[1745585009240,6.9490596,154.92,154.9,3.7435]
[1745585011143,13.4016596,154.91,154.88,31.3737]
[1745585011343,13.4016596,154.91,154.88,6.4537]
[1745585011543,6.9490596,154.9,154.87,6.4539]
[1745585013245,6.9490596,154.9,154.85,18.7570596]
[1745585013750,13.4020596,154.9,154.87,6.4541]
[1745585014050,6.9490596,154.9,154.87,6.4541]
[1745585014249,6.9490596,154.92,154.88,6.9490596]
[1745585014449,31.8690596,154.94,154.89,6.9490596]
[1745585014649,6.9490596,154.93,154.89,6.9490596]
[1745585014849,6.9490596,154.92,154.89,6.4532]
[1745585015253,6.9490596,154.92,154.88,6.9490596]
[1745585015254,6.9490596,154.91,154.86,6.9490596]
[1745585015451,6.9490596,154.9,154.85,18.7570596]
[1745585016351,6.9490596,154.9,154.88,6.4536]
[1745585017558,6.9490596,154.89,154.85,11.808]
[1745585017753,6.9490596,154.88,154.85,11.808]
[1745585017954,6.9490596,154.88,154.86,6.4545]
[1745585018254,6.9490596,154.88,154.85,11.808]
[1745585018450,6.9490596,154.87,154.85,7.768]
[1745585018656,6.9490596,154.86,154.81,31.8890596]
[1745585018958,6.9490596,154.86,154.81,39.5411596]
[1745585019558,6.9490596,154.86,154.81,14.6011596]
[1745585020264,6.9490596,154.85,154.81,7.6521]
[1745585020665,6.9490596,154.85,154.83,6.4557]
[1745585020860,6.9490596,154.85,154.81,7.6521]
[1745585021359,6.9490596,154.85,154.83,6.4556]
[1745585022059,6.9490596,154.85,154.84,6.4555]
[1745585023261,6.9490596,154.85,154.83,6.4557]
[1745585023659,6.9490596,154.85,154.81,7.6521]
[1745585024567,6.9490596,154.86,154.82,6.9490596]
[1745585025371,6.9490596,154.86,154.84,6.4553]
[1745585025758,6.9490596,154.85,154.84,6.4553]
[1745585026468,6.9490596,154.85,154.81,14.6011596]
[1745585026663,6.9490596,154.84,154.81,7.6521]
[1745585026863,6.9490596,154.83,154.79,10.8547596]
[1745585027063,6.9490596,154.82,154.8,6.4569]
[1745585028365,6.9490596,154.81,154.78,4.17314]
[1745585028667,6.9490596,154.8,154.78,4.17314]
[1745585029871,6.9490596,154.8,154.79,6.4576]
[1745585030172,6.9490596,154.83,154.78,11.1221996]
[1745585030667,6.9490596,154.83,154.81,6.4565]
[1745585030873,6.9490596,154.83,154.78,4.17314]
[1745585031074,6.9490596,154.81,154.78,4.17314]
[1745585031874,6.9490596,154.81,154.79,6.4574]
[1745585032174,6.9490596,154.81,154.78,4.17314]
[1745585032372,6.9490596,154.81,154.79,6.4574]
[1745585033276,6.9490596,154.8,154.78,10.63104]
[1745585033472,6.9490596,154.8,154.78,4.17314]
[1745585033775,6.9490596,154.8,154.78,10.63094]
[1745585034281,6.9490596,154.8,154.78,4.17314]
[1745585034475,6.9490596,154.81,154.8,6.4571]
[1745585034783,6.9490596,154.82,154.78,11.1221996]
[1745585035078,6.9490596,154.82,154.8,6.457]
[1745585035873,6.9490596,154.81,154.79,6.4576]
[1745585037582,6.9490596,154.81,154.78,10.1852]
[1745585037882,6.9490596,154.8,154.78,10.1852]
[1745585038076,6.9490596,154.79,154.77,6.4582]
[1745585038577,6.9490596,154.79,154.76,3.8101]
[1745585039182,6.9490596,154.78,154.74,28.7394]
[1745585039381,6.9490596,154.77,154.75,6.459]
[1745585040082,6.9490596,154.77,154.76,6.4589]
[1745585042277,6.9490596,154.78,154.77,6.4582]
[1745585042879,6.9490596,154.84,154.82,6.4561]
[1745585043178,6.9490596,154.85,154.8,6.9490596]
[1745585043378,6.9490596,154.85,154.81,6.9490596]
[1745585043579,6.9490596,154.85,154.83,6.4559]
[1745585044579,6.9490596,154.85,154.84,6.4555]
[1745585045381,6.9490596,154.85,154.8,3.7436]
[1745585045581,6.9490596,154.83,154.8,3.7436]
[1745585045876,6.9490596,154.82,154.8,3.7436]
[1745585046081,6.9490596,154.83,154.81,6.4564]
[1745585046481,6.9490596,154.83,154.81,6.4568]
[1745585046683,6.9490596,154.83,154.8,3.7436]
[1745585047182,6.9490596,154.81,154.76,31.8690596]
[1745585047481,6.9490596,154.77,154.73,43.6143596]
[1745585047681,6.9490596,154.76,154.73,36.6653]
[1745585048182,6.9490596,154.77,154.73,36.6653]
[1745585049080,6.9490596,154.77,154.76,6.4589]
[1745585049374,10.84989306,154.79,154.76,6.4589]
[1745585051582,10.84989306,154.79,154.77,6.4584]
[1745585052481,10.84989306,154.79,154.78,6.458]
[1745585053482,10.84989306,154.79,154.77,6.4583]
[1745585055886,10.84989306,154.79,154.78,6.458]
[1745585056783,42.22679306,154.81,154.79,6.4575]
[1745585057187,42.22679306,154.81,154.78,6.4578]
[1745585057587,6.4572,154.8,154.78,6.4578]
[1745585057984,10.84989306,154.79,154.78,6.4578]
[1745585058184,10.84989306,154.79,154.69,25.28112]
[1745585058381,10.84989306,154.73,154.69,8.16722]
[1745585059097,10.84989306,154.75,154.69,8.16722]
[1745585059991,17.30939306,154.75,154.69,8.16722]
[1745585060192,10.84989306,154.75,154.69,8.16722]
[1745585060684,6.4599,154.74,154.7,6.4613]
[1745585060891,10.84989306,154.73,154.7,6.4613]
[1745585061286,17.31009306,154.73,154.7,6.4613]
[1745585061492,10.84989306,154.73,154.69,14.62872]
[1745585061692,10.84989306,154.73,154.69,10.58642]
[1745585061894,10.84989306,154.73,154.69,6.82262]
[1745585062192,6.4606,154.72,154.69,0.36112]
[1745585062392,10.84989306,154.73,154.69,0.36112]
[1745585062593,10.84989306,154.73,154.7,6.4611]
[1745585062791,10.84989306,154.73,154.69,0.36112]
[1745585063192,6.4606,154.72,154.69,6.82272]
[1745585064295,17.31019306,154.73,154.69,6.82272]
[1745585064489,10.84989306,154.73,154.69,6.82272]
[1745585064996,10.84989306,154.73,154.7,6.4614]
[1745585065592,17.31019306,154.73,154.7,6.4614]
[1745585067196,6.4606,154.72,154.7,6.4614]
[1745585067497,10.84989306,154.71,154.69,0.36112]
[1745585067794,17.31099306,154.71,154.69,6.4618]
[1745585068193,17.31099306,154.71,154.65,7.6817]
[1745585068497,17.31099306,154.71,154.68,6.4619]
[1745585068797,6.4615,154.7,154.67,6.4624]
[1745585069297,6.95205674,154.68,154.67,6.4624]
[1745585070497,6.95205674,154.68,154.65,7.6817]
[1745585070697,6.95205674,154.67,154.65,7.6817]
[1745585070896,6.95205674,154.67,154.65,6.4632]
[1745585071795,6.95205674,154.66,154.61,24.9]
[1745585072096,6.95205674,154.64,154.61,24.9]
[1745585072495,6.95205674,154.65,154.61,31.85205674]
[1745585072799,6.95205674,154.72,154.63,6.95205674]
[1745585073091,6.95205674,154.72,154.67,6.95205674]
[1745585073700,6.95205674,154.72,154.71,6.4609]
[1745585074399,31.85205674,154.74,154.73,6.4601]
[1745585074593,6.95205674,154.75,154.73,6.4601]
[1745585075300,42.21211591,154.77,154.73,6.4601]
[1745585075597,35.75351591,154.77,154.74,6.4596]
[1745585075799,35.75351591,154.77,154.7,3.77]
[1745585075998,42.21201591,154.77,154.7,3.77]
[1745585076500,35.75351591,154.77,154.7,3.77]
[1745585076698,24.9,154.77,154.71,3.9919]
[1745585076901,10.85351591,154.79,154.71,7.8182]
[1745585077102,10.85351591,154.79,154.76,6.4587]
[1745585077401,10.85351591,154.79,154.71,7.8182]
[1745585078199,17.31111591,154.79,154.71,7.8182]
[1745585078502,10.85351591,154.79,154.71,7.8182]
[1745585079204,17.31111591,154.79,154.76,6.4588]
[1745585079398,17.31111591,154.79,154.71,7.8182]
[1745585079599,10.85351591,154.79,154.71,7.8182]
[1745585080405,6.4587,154.77,154.73,6.4599]
[1745585080601,10.85351591,154.77,154.73,6.4599]
[1745585081097,17.31211591,154.77,154.73,6.4599]
[1745585082897,17.31211591,154.77,154.74,6.4596]
[1745585083103,10.85351591,154.77,154.71,7.8182]
[1745585083505,10.85351591,154.77,154.75,6.459]
[1745585086308,10.85351591,154.77,154.76,6.4589]
[1745585086806,10.85351591,154.79,154.77,6.4582]
[1745585087405,17.31121591,154.79,154.76,6.4586]
[1745585088210,24.9,154.8,154.72,10.85351591]
[1745585088709,24.9,154.8,154.79,6.4576]
[1745585089110,24.9,154.8,154.78,6.4578]
[1745585089511,24.9,154.8,154.72,10.85351591]
[1745585089701,24.9,154.8,154.79,6.4576]
[1745585089908,35.75351591,154.83,154.74,10.85351591]
[1745585090101,24.9,154.83,154.74,35.75351591]
[1745585090406,24.9,154.83,154.81,6.4564]
[1745585091907,24.9,154.83,154.8,6.4571]
[1745585093411,31.356,154.83,154.8,6.4571]
[1745585094114,24.9,154.83,154.8,6.4571]
[1745585094612,24.9,154.83,154.81,6.4568]
[1745585095111,24.9,154.83,154.74,35.75351591]
[1745585095112,24.9,154.83,154.76,10.85351591]
[1745585095315,24.9,154.83,154.77,5.5185]
[1745585095507,24.9,154.83,154.81,6.4565]
[1745585096113,24.9,154.83,154.8,6.457]
[1745585096717,31.3561,154.83,154.79,6.4574]
[1745585096916,24.9,154.83,154.77,8.2937]
[1745585097715,24.9,154.83,154.81,6.4567]
[1745585097917,24.9,154.83,154.77,8.2937]
[1745585098417,24.9,154.83,154.82,6.4564]
[1745585099216,500.87351591,154.86,154.83,6.4559]
[1745585099517,6.93792004,154.84,154.79,6.93792004]
[1745585099817,6.93792004,154.82,154.81,6.4565]
[1745585100409,6.93792004,154.82,154.8,6.457]
[1745585100613,6.93792004,154.82,154.77,15.23162004]
[1745585101013,6.93792004,154.82,154.81,6.4568]
[1745585101218,6.93792004,154.82,154.77,8.2937]
[1745585102024,13.39432004,154.82,154.77,8.2937]
[1745585102321,6.93792004,154.8,154.77,8.2937]
[1745585102619,6.93792004,154.8,154.79,6.4576]
[1745585103311,6.93792004,154.84,154.78,6.93792004]
[1745585103520,24.86,154.85,154.8,6.93792004]
[1745585103720,31.3141,154.88,154.85,6.455]
[1745585104017,6.93792004,154.86,154.85,6.455]
[1745585105117,6.93792004,154.86,154.8,6.93792004]
[1745585105321,35.6985433,154.88,154.78,35.6985433]
[1745585105517,10.8385433,154.92,154.82,10.8385433]
[1745585105724,24.86,154.96,154.88,10.8385433]
[1745585106112,6.451,154.95,154.88,10.8385433]
[1745585106320,24.86,154.96,154.88,10.8385433]
[1745585106621,31.3107,154.96,154.91,6.4525]
[1745585106825,24.86,154.96,154.88,10.8385433]
[1745585107322,24.86,154.96,154.9,6.4528]
[1745585107517,24.86,154.96,154.88,10.8385433]
[1745585107823,6.4517,154.94,154.88,6.4537]
[1745585108723,6.4518,154.93,154.88,6.4537]
[1745585109025,35.6985433,154.96,154.87,24.86]
[1745585109222,24.86,154.96,154.88,10.8385433]
[1745585109521,31.3108,154.96,154.9,6.4529]
[1745585109822,31.3108,154.96,154.91,5.5323]
[1745585110126,6.4509,154.95,154.91,5.5323]
[1745585110322,24.86,154.96,154.91,5.5323]
[1745585111122,10.8385433,154.95,154.87,31.314]
[1745585111315,6.4519,154.93,154.87,31.314]
[1745585111515,10.8385433,154.93,154.87,24.86]
[1745585111716,10.8385433,154.93,154.84,35.6785433]
[1745585111921,6.4528,154.91,154.84,35.6785433]
[1745585112320,6.4528,154.91,154.86,6.4545]
[1745585112521,6.453,154.9,154.86,6.4545]
[1745585112721,10.8385433,154.91,154.83,8.5468]
[1745585112922,10.8385433,154.87,154.83,8.5468]
[1745585113516,10.8385433,154.87,154.83,5.7207]
[1745585113925,6.4554,154.85,154.83,5.7207]
[1745585114424,10.8385433,154.85,154.76,27.4776]
[1745585114623,24.84,154.86,154.76,27.4776]
[1745585114624,10.8385433,154.83,154.77,5.7593]
[1745585115022,6.4565,154.82,154.78,6.4579]
[1745585115223,10.8385433,154.85,154.77,5.7593]
[1745585115526,24.84,154.86,154.78,10.8385433]
[1745585115828,24.84,154.86,154.79,24.84]
[1745585116025,24.84,154.86,154.83,6.4559]
[1745585116227,24.84,154.86,154.8,10.8385433]
[1745585116526,6.4543,154.87,154.83,6.4556]
[1745585116726,35.6785433,154.89,154.8,10.8385433]
[1745585117228,35.6785433,154.89,154.83,6.4557]
[1745585117826,6.4546,154.87,154.83,6.4557]
[1745585119327,6.4547,154.86,154.83,6.4557]
[1745585119530,10.8385433,154.85,154.81,6.4567]
[1745585119726,10.8385433,154.85,154.79,24.84]
[1745585119929,17.2938433,154.85,154.79,24.84]
[1745585120225,6.4553,154.85,154.79,24.84]
[1745585120429,17.2925433,154.88,154.79,24.84]
[1745585120627,17.2925433,154.88,154.84,6.4553]
[1745585120922,6.4546,154.87,154.79,24.84]
[1745585121123,10.8385433,154.88,154.79,24.84]
[1745585121521,10.8385433,154.88,154.82,6.4561]
[1745585121721,10.8385433,154.88,154.79,24.84]
[1745585122025,10.8385433,154.86,154.79,24.84]
[1745585122229,6.4557,154.84,154.79,24.84]
[1745585122626,6.4557,154.84,154.8,6.457]
[1745585122829,6.4557,154.84,154.77,5.7593]
[1745585123028,31.3153,154.85,154.77,5.7593]
[1745585123531,31.3153,154.85,154.81,6.4565]
[1745585125331,6.4556,154.84,154.8,6.457]
[1745585125733,24.86,154.85,154.77,5.7593]
[1745585126032,31.3155,154.85,154.81,6.4568]
[1745585126431,24.86,154.85,154.81,6.4568]
[1745585126930,24.86,154.85,154.8,6.4568]
[1745585127229,6.4558,154.84,154.8,6.4568]
[1745585127429,24.86,154.85,154.81,6.4567]
[1745585127833,31.3154,154.85,154.81,6.4567]
[1745585128531,31.3154,154.85,154.8,6.4571]
[1745585128532,6.4558,154.84,154.8,6.4571]
[1745585128829,6.4558,154.84,154.77,5.7593]
[1745585129027,31.3153,154.85,154.81,6.4565]
[1745585129232,24.86,154.85,154.77,5.7593]
[1745585130537,31.3154,154.85,154.77,5.7593]
[1745585130730,10.8385433,154.84,154.77,5.7593]
[1745585131237,6.4564,154.82,154.78,6.4578]
[1745585132033,6.4564,154.82,154.79,6.4575]
[1745585133034,6.457,154.81,154.77,5.7593]
[1745585133237,10.8385433,154.8,154.77,5.7593]
[1745585133736,10.8385433,154.8,154.76,6.4587]
[1745585134236,10.8385433,154.8,154.72,25.22068]
[1745585134237,10.8385433,154.78,154.72,0.40068]
[1745585134535,24.82,154.77,154.72,0.40068]
[1745585134733,24.82,154.78,154.72,0.40068]
[1745585134937,31.2782,154.78,154.73,6.4599]
[1745585135233,24.82,154.78,154.73,6.4599]
[1745585135536,6.4589,154.76,154.72,6.86088]
[1745585135738,10.8385433,154.77,154.72,6.86088]
[1745585136036,10.8385433,154.77,154.72,0.40068]
[1745585136634,6.4596,154.75,154.72,0.40068]
[1745585136939,17.2981433,154.75,154.72,0.40068]
[1745585137138,10.8385433,154.75,154.72,0.40068]
[1745585137433,10.8385433,154.73,154.72,0.40068]
[1745585137834,17.2986433,154.73,154.72,0.40068]
[1745585138035,10.8385433,154.73,154.72,0.40068]
[1745585138235,24.82,154.74,154.72,0.40068]
[1745585138440,24.82,154.74,154.72,6.86098]
[1745585138737,24.82,154.74,154.72,0.40068]
[1745585139637,24.82,154.74,154.72,6.86088]
[1745585139829,24.82,154.74,154.72,6.4602]
[1745585140029,24.82,154.74,154.67,10.8385433]
[1745585140632,24.82,154.74,154.72,6.4605]
[1745585141140,24.82,154.74,154.67,10.8385433]
[1745585141141,24.82,154.74,154.71,6.4608]
[1745585141343,24.82,154.74,154.66,29.8368]
[1745585141841,31.2799,154.74,154.7,6.4613]
[1745585142143,24.82,154.74,154.66,29.8368]
[1745585142339,6.4601,154.73,154.69,6.4616]
[1745585142644,6.4601,154.73,154.66,29.8368]
[1745585142839,24.82,154.74,154.66,29.8368]
[1745585143243,31.2799,154.74,154.7,6.4614]
[1745585143539,24.82,154.74,154.66,29.8368]
[1745585144643,10.8385433,154.73,154.66,29.8368]
[1745585145643,10.8385433,154.73,154.7,6.4612]
[1745585145843,10.8385433,154.73,154.66,29.8368]
[1745585146043,24.82,154.74,154.66,29.8368]
[1745585147143,24.82,154.74,154.72,6.4602]
[1745585150846,6.461,154.71,154.66,5.0168]
[1745585151148,10.8385433,154.7,154.67,6.4624]
[1745585151342,35.6785433,154.7,154.67,6.4624]
[1745585152645,42.1400433,154.7,154.67,6.4624]
[1745585153446,35.6785433,154.7,154.67,6.4624]
[1745585153740,35.6785433,154.7,154.66,6.4629]
[1745585153941,10.8385433,154.68,154.65,0.32154]
[1745585154643,24.84,154.7,154.65,0.32154]
[1745585154948,10.8385433,154.66,154.65,0.32154]
[1745585155248,24.84,154.66,154.65,6.78494]
[1745585156250,24.84,154.66,154.64,6.4637]
[1745585157152,10.8385433,154.65,154.59,7.8094]
[1745585157547,10.8385433,154.65,154.62,6.4643]
[1745585157949,17.3022433,154.65,154.62,6.4643]
[1745585158751,6.4639,154.64,154.59,7.8094]
[1745585158959,6.4639,154.64,154.59,5.2113]
[1745585159154,10.8385433,154.63,154.59,5.2113]
[1745585159552,24.82,154.62,154.59,5.2113]
[1745585159750,24.82,154.62,154.6,6.4653]
[1745585160452,24.82,154.62,154.59,5.2113]
[1745585160647,24.82,154.64,154.59,5.2113]
[1745585160848,24.82,154.67,154.65,6.4632]
[1745585161352,24.82,154.7,154.62,10.8385433]
[1745585162145,24.82,154.7,154.6,2.7056]
[1745585162351,10.8385433,154.65,154.64,6.4639]
[1745585162546,10.8385433,154.67,154.6,2.7056]
[1745585162750,10.8385433,154.69,154.6,13.5441433]
[1745585162951,17.3003433,154.69,154.65,6.4631]
[1745585163550,6.4623,154.68,154.65,6.4631]
[1745585164152,6.4623,154.68,154.64,6.4636]
[1745585164352,6.4623,154.68,154.6,13.5441433]